Cogmind - Beta 16 @@@ ROGUE MODE // 2026.01.04 @ 03:35:12 Player: LYMPH NODE JONES Result: Destroyed by G-47 Trooper with Particle Gun Performance ------------- Evolutions (1) 500 Regions Visited (2) 400 Robots Destroyed (11) 55 Value Destroyed (347) 347 Prototype IDs (0) 0 Alien Tech Used (0) 0 Bonus (0) 0 TOTAL SCORE: 1302 Bonus ------- None Cogmind --------- Core Integrity 0/400 Matter 250/300 Energy 100/100 System Corruption 0% Temperature Cool (9) Movement Core (50) Location -9/Materials Parts ------- > --- POWER (1) -------- (None) > --- PROPULSION (2) --- (None) > --- UTILITY (3) ------ (None) > --- WEAPON (3) ------- (None) > --- INVENTORY (5) ---- Ion Engine Compact Wheel Targeting Computer EM Pulse Gun Rocket Launcher Peak State ------------ > --- POWER ------------ Ion Engine > --- PROPULSION ------- Wheel > --- UTILITY ---------- Targeting Computer Targeting Computer Light Armor Plating > --- WEAPON ----------- Assault Rifle Assault Rifle Light Cannon > --- INVENTORY -------- Ion Engine Compact Wheel Targeting Computer EM Pulse Gun [Rating: 8] Favorites ----------- Power Ion Engine Engine Ion Engine Propulsion Wheel Wheel Wheel Utility Targeting Computer Storage Small Storage Unit Processor Targeting Computer Protection Light Armor Plating Weapon Assault Rifle Ballistic Gun Assault Rifle Ballistic Cannon Light Cannon Build | -11 -10 -9 ------- Run | Yrd Mat Mat Slots Evolved 2 | . . 2 Power . | . . . Propulsion . | . . . Utility 1 | . . 1 Weapon 1 | . . 1 Parts Attached 12 | 6 4 2 Power 2 | 1 1 . Engine 2 | 1 1 . Core . | . . . Reactor . | . . . Propulsion 2 | 2 . . Treads . | . . . Leg . | . . . Wheel 2 | 2 . . Hover . | . . . Flight . | . . . Utility 4 | 1 2 1 Device . | . . . Storage 1 | 1 . . Processor 2 | . 2 . Hackware . | . . . Protection 1 | . . 1 Artifact . | . . . Weapon 4 | 2 1 1 Energy Gun . | . . . Energy Cannon . | . . . Ballistic Gun 3 | 2 1 . Ballistic Cannon 1 | . . 1 Launcher . | . . . Special Weapon . | . . . Impact Weapon . | . . . Slashing Weapon . | . . . Piercing Weapon . | . . . Special Melee Weapon . | . . . Unidentified Prototypes . | . . . Parts Lost 8 | . . 8 Power 1 | . . 1 Propulsion 1 | . . 1 Utility 3 | . . 3 Weapon 3 | . . 3 Highest Loss Streak 8 | . . 8 To Critical Strikes . | . . . Average Backups 4 | 2 4 4 Power . | . 1 1 Propulsion 1 | 1 1 1 Utility . | . . 1 Weapon 1 | . 1 1 Tool/Special . | . . . Unused Backups 6 | . 2 4 Power 1 | . . 1 Propulsion 2 | . 2 . Utility 1 | . . 1 Weapon 2 | . . 2 Tool/Special . | . . . Average Slot Usage (%) 82 | . 90 62 Engine 12 | . 14 7 Wheel 18 | . 22 8 Storage 3 | . 4 . Processor 19 | . 20 19 Ballistic Gun 24 | . 28 17 Ballistic Cannon 2 | . . 7 Peak Build Rating 8 | 6 7 8 Average Rating 6 | 4 6 5 On Entrance 4 | . 6 6 Avg Prop Armor Cover (%) . | . . . Naked Turns 20 | . . 20 Heaviest Build 15 | 14 14 15 Greatest Support 26 | 26 26 10 Greatest Overweight (x) 4 | 4 . 1 Average Overweight (x) . | . . . Largest Inventory Capacity 8 | 8 8 5 Average Capacity 5 | 7 6 5 Most Carried 5 | 4 5 5 Average Carried 4 | 2 4 4 Final Capacity 8 | 8 5 5 Final Carried 5 | 4 5 5 Class Distribution -------------------- 84% | Mutant 15% | Gunner Dominant Class ---------------- Mutant | -10/Materials Gunner | -9/Materials Resources | -11 -10 -9 ----------- Run | Yrd Mat Mat Matter Collected 476 | 244 148 84 Remotely . | . . . Salvage Created 414 | . 148 266 Parts 24 | . 7 17 Haulers Intercepted . | . . . Recyclers Shooed . | . . . Parts Field Recycled . | . . . Retrieved Matter . | . . . Parts Self-Destructed . | . . . Prevented . | . . . Parts Restored . | . . . Kills | -11 -10 -9 ------- Run | Yrd Mat Mat Combat Hostiles Destroyed 8 | . 3 5 Guns 5 | . 3 2 Cannons 3 | . . 3 Classes Destroyed 4 | . 2 2 Recycler 1 | . . 1 Watcher 2 | . 1 1 Grunt 7 | . 3 4 Sentry 1 | . . 1 Best Kill Streak 4 | . 3 4 Combat Bots Only 3 | . 2 3 Max Kills in Single Turn 2 | . 1 2 Gunslinging . | . . . Exploded . | . . . Melee . | . . . Uniques/NPCs Destroyed . | . . . Combat | -11 -10 -9 -------- Run | Yrd Mat Mat Hostile Shots Fired 99 | . 15 84 Missed 26 | . 5 21 Hits 73 | . 10 63 Projectile 73 | . 10 63 Critical Strikes 4 | . . 4 Damage Taken 1066 | . 138 928 Core 449 | . 40 409 Absorbed by Shields . | . . . Core Remaining (%) 92 | 100 84 . Volleys Fired 25 | . 11 14 Largest 3 | . 2 3 Hottest 70 | . 40 70 Shots Fired 64 | . 22 42 Gun 50 | . 22 28 Cannon 14 | . . 14 Launcher . | . . . Special . | . . . Kinetic 64 | . 22 42 Thermal . | . . . Explosive . | . . . Electromagnetic . | . . . Robot Hit Streak 10 | . 9 10 Robot Miss Streak 3 | . 1 3 Penetration Max . | . . . Secondary Targets . | . . . Shots Hit Robots 46 | . 18 28 Core Hits 21 | . 8 13 Critical Kills . | . . . Critical Parts Destroyed . | . . . Critical Strikes 2 | . . 2 Blast 2 | . . 2 Melee Attacks . | . . . Impact . | . . . Slashing . | . . . Piercing . | . . . Sneak Attacks . | . . . Combat Hostiles . | . . . Follow-up Attacks . | . . . Damage Inflicted 625 | . 235 390 Guns 442 | . 235 207 Cannons 183 | . . 183 Explosions . | . . . Melee . | . . . Ramming . | . . . Kinetic 625 | . 235 390 Thermal . | . . . Explosive . | . . . Electromagnetic . | . . . Impact . | . . . Slashing . | . . . Piercing . | . . . Highest Corruption . | . . . Average Corruption . | . . . Corruption Purged . | . . . Corruption Blocked . | . . . Overload Shots . | . . . Overflow Damage . | . . . Projectiles . | . . . Explosions . | . . . Melee . | . . . Knockbacks 3 | . . 3 Impact . | . . . Kinetic 3 | . . 3 Secondary . | . . . Self-Inflicted Damage . | . . . Shots . | . . . Rammed . | . . . Targets Rammed . | . . . Kicked . | . . . Crushed . | . . . Highest Temperature 116 | . 8 116 Average Temperature 39 | . 2 48 Received Heat Transfer 546 | . 84 462 Siege Activations . | . . . Martial Activations . | . . . Shielding Activations . | . . . Robots Disrupted . | . . . Combat Hostiles . | . . . Robots Corrupted . | . . . Combat Hostiles . | . . . Parts Fried . | . . . Impact Corruptions . | . . . Robots Melted . | . . . Combat Hostiles . | . . . Parts Melted . | . . . Heat Transferred . | . . . Parts Sabotaged . | . . . Parts Stolen . | . . . Parts Stripped . | . . . Power Chain Reactions . | . . . Alert | -11 -10 -9 ------- Run | Yrd Mat Mat Maximum Alert Level . | . . . Low Security (%) 100 | 100 100 100 Level 1 . | . . . Level 2 . | . . . Level 3 . | . . . Level 4 . | . . . Level 5 . | . . . High Security . | . . . Max Security . | . . . Peak Influence 186 | . 47 186 Initial . | . . . Average 24 | . 8 78 Influence Increases 343 | . 110 233 Destroy 0b10 Robot/C 160 | . 60 100 Destroy 0b10 Robot/NC 15 | . 5 10 Destroy Leader 44 | . 12 32 Successful Hack 3 | . 3 . Destroy Structure 1 | . . 1 Lose Combat Pursuer 120 | . 30 90 Influence Decreases 267 | . 110 157 Time Decay 187 | . 110 77 Lost Part 80 | . . 80 Squads Dispatched 1 | . . 1 Investigation . | . . . Extermination . | . . . Reinforcement 1 | . . 1 Assault . | . . . Garrison . | . . . Intercept . | . . . Searches Triggered . | . . . Construction Impeded . | . . . Haulers Reinforced . | . . . Active Scanning Responses . | . . . Cargo Convoy Interrupts . | . . . Stealth | -11 -10 -9 --------- Run | Yrd Mat Mat Distress Signals 2 | . 1 1 Communications Jammed . | . . . Distress Signals . | . . . Times Spotted 16 | . 7 9 Peak Tracking Total 6 | . 4 6 Tactical Retreats 5 | . 1 4 Traps | -11 -10 -9 ------- Run | Yrd Mat Mat Traps Triggered 2 | . 2 . Indirectly . | . . . Trap Hack Attempts . | . . . Triggered . | . . . Disarmed . | . . . Reprogrammed . | . . . Reused . | . . . Traps Extracted . | . . . Installed . | . . . Triggered . | . . . Machines | -11 -10 -9 ---------- Run | Yrd Mat Mat Machines Disabled . | . . . Max in Single Turn . | . . . Machines Repaired . | . . . Machines Dismantled . | . . . Machines Sabotaged . | . . . Overloaded Fab Kills . | . . . Hacking | -11 -10 -9 --------- Run | Yrd Mat Mat Machines Accessed 5 | . 5 . Terminals 4 | . 4 . Fabricators . | . . . Repair Stations . | . . . Recycling Units 1 | . 1 . Scanalyzers . | . . . Garrison Access . | . . . Total Hacks 13 | . 13 . Successful 10 | . 10 . Failed 3 | . 3 . Catastrophic . | . . . Database Lockouts . | . . . Manual . | . . . Terminals 9 | . 9 . Fabricators . | . . . Repair Stations . | . . . Recycling Units 4 | . 4 . Scanalyzers . | . . . Garrison Access . | . . . Terminal Hacks 6 | . 6 . Record 2 | . 2 . Locate Traps 1 | . 1 . Registered Components 1 | . 1 . Zone Layout 2 | . 2 . Fabricator Hacks . | . . . Repair Station Hacks . | . . . Recycling Unit Hacks 4 | . 4 . Recycle Component 1 | . 1 . Process 2 | . 2 . Report Inventory 1 | . 1 . Scanalyzer . | . . . Garrison Access Hacks . | . . . Unauthorized Hacks . | . . . Terminals . | . . . Fabricators . | . . . Repair Stations . | . . . Recycling Units . | . . . Scanalyzers . | . . . Garrison Access . | . . . Data Cores Recovered . | . . . Used . | . . . Hacking Detections 3 | . 3 . Full Trace Events 1 | . 1 . Feedback Events . | . . . Feedback Blocked . | . . . Robot Schematics Acquired . | . . . Robots Built . | . . . Authchips . | . . . Time . | . . . Total Robot Build Rating . | . . . Part Schematics Acquired . | . . . Parts Built . | . . . Authchips . | . . . Time . | . . . Total Part Build Rating . | . . . Part Studies Acquired . | . . . Parts Repaired . | . . . Time . | . . . Parts Recycled 1 | . 1 . Recycled Matter 45 | . 45 . Retrieved Matter . | . . . Retrieved Components . | . . . Parts Scanalyzed . | . . . Part Schematics Acquired . | . . . Parts Damaged . | . . . Bothacking | -11 -10 -9 ------------ Run | Yrd Mat Mat Used RIF Installer . | . . . Robots Hacked . | . . . Non-combat . | . . . Combat . | . . . Robot Hacks Applied . | . . . Relay Couplers Released . | . . . Fabnet Peak Effective % . | . . . Robots Rewired . | . . . Allies Hacked . | . . . Hacks Repelled . | . . . Allies | -11 -10 -9 -------- Run | Yrd Mat Mat Total Allies . | . . . Largest Group . | . . . Highest-Rated Group . | . . . Highest-Rated Ally . | . . . Total Orders . | . . . Ally Attacks . | . . . Total Damage . | . . . Kills . | . . . Allies Corrupted . | . . . Allies Melted . | . . . Intel | -11 -10 -9 ------- Run | Yrd Mat Mat Active Infowar (turns) . | . . . Robot Analysis Total . | . . . Derelict Logs Recovered . | . . . Drone Launches . | . . . Drone Recoveries . | . . . Exploration | -11 -10 -9 ------------- Run | Yrd Mat Mat Turns Passed 752 | 81 485 186 Spaces Moved 635 | 68 498 69 Core 17 | 17 . . Treads . | . . . Legs . | . . . Wheels 618 | 51 498 69 Hover . | . . . Flight . | . . . Fastest Speed 50 | 50 80 80 Average Speed 87 | 100 85 88 Slowest Speed 250 | 250 90 95 Overloaded Moves . | . . . Propulsion Burnouts . | . . . Robots Hopped . | . . . Potential Cave-ins . | . . . Cave-ins Triggered . | . . . Exploration Rate (%) 30 | 5 74 12 Regions Visited 2 Branch Regions . Pre-discovered Areas . | . . . Known Exits Taken . | . . . Unknown Exits Taken 2 | 1 1 . Scrap Searched . | . . . Spaces Dug . | . . . Terrain Destroyed . | . . . Melee . | . . . Projectile . | . . . AOE . | . . . Terrain Rammed . | . . . Walls Destroyed . | . . . Machines Disabled . | . . . Actions | -11 -10 -9 --------- Run | Yrd Mat Mat Total 773 | 77 534 162 Wait 83 | . 8 75 Move 633 | 67 497 69 Hop . | . . . Pick Up 10 | 4 4 2 Fast Attach 13 | 6 7 . Attach 3 | . 1 2 Detach 1 | . 1 . Swap . | . . . Drop 5 | . 5 . Fire 25 | . 11 14 Melee . | . . . Ram . | . . . Kick . | . . . Crush . | . . . Escape Stasis . | . . . Rewire . | . . . Trap . | . . . Miscellaneous . | . . . Route ------- -11/Scrapyard -10/Materials (discovered 5 exits: [*Mat x3] / [*Min] / [*Sub]) -9/Materials (discovered 1 exit: [*Min]) History --------- Turn | Location | Event 5 | -11/Scrapyard | Discovered new exit (range 16) 82 | -11/Scrapyard | Entered Materials 98 | -10/Materials | Discovered new exit (range 15) 171 | -10/Materials | Discovered new exit (range 9) 314 | -10/Materials | Build established: Mutant 424 | -10/Materials | Discovered new exit (range 10) 429 | -10/Materials | Discovered new exit (range 7) 555 | -10/Materials | Discovered new exit (range 4) 567 | -10/Materials | Entered another Materials area 567 | -9/Materials | Evolved 2 slots: Utility x1, Weapon x1 610 | -9/Materials | Discovered new exit (range 14) 740 | -9/Materials | Core integrity fell below 50% 749 | -9/Materials | Core integrity fell below 20% 753 | -9/Materials | Destroyed by G-47 Trooper with Particle Gun Last Messages --------------- 00738_ R-06 Scavenger inserts Com. Wheel into recycling unit. 00739_ R-06 Scavenger collects Aluminum Leg. 00741_ R-06 Scavenger inserts Aluminum Leg into recycling unit. 00742_ Recycling unit begins recycling process. 00742_ R-06 Scavenger inserts Aluminum Leg into recycling unit. 00744_ R-06 Scavenger inserts Particle Gun into recycling unit. 00745_ Recycling unit begins recycling process. 00747_ R-06 Scavenger inserts Com. Wheel into recycling unit. 00747_ R-06 Scavenger collects Tractor Beam. 00750_ R-06 Scavenger inserts Sml. Storage Unit into recycling unit. 00750_ R-06 Scavenger inserts Tractor Beam into recycling unit. 00751_ Recycling unit begins recycling process. 00751_ R-06 Scavenger collects Sml. Laser. Map ----- +----------------------------------------------------+ | ??????????????????????# #???? ####?? | | ??????????????????????# ##### ? | | ??????????????????????# #??? | | ??????????????????????# #??? | | ??????????????????????# """ ""?? | | ???????????????######## """""? T??? | | ???????????????# # """""? "??? | | ???????????????# # """"" #??? | | ???????????????# """ # """ #??? | | ???????????????# """ + #??? | | ???????????????# """ # #??? | | ???????????????# # """ #??? | | ???????????????######## """"" #??? | | ?????????????????????# """""? #??? | | ?????????????????????# """"" ##?? | | ?????????????????????# """ +?? | | ?????????????????????# [ #?? | | ?????????????????????# ### | | ?????????????????????## """ | | ??????????????????????# """"" | | ??????????????????????# % % """"" | | ????????????########### """"" ![ | | ????????????# """"" #= """ ![ | | ????????????# """"% #%= [[ | | ????????????#!["" #% = | | ????????????#* @ Y % +% % | | ???????# <%g%*rr #[ "T" | | ???????# |# "Y" ! %# """ | | ???????# [??#r""" ! ##"T"############? | | ???????+????# ##"""#???????????? | | ????????????### ############???????????? | | ??????????????###??????????????????????? | | ???????????????????????????????????????? | | ???????????????????????????????????????? | | ???????????????????????????????????????? | | ???????????????????????????????????????? | | ???????????????????????????????????????? | | ???????????????????????????????????????? | | ???????????????????????????????????????? | | ???????????????????????????????????????? | | ???????????????????????????????????????? | | ???????????????????????????????????????? | | ???????????????????????????????????????? | | ???????????????????????????????????????? | | ???????????????????????????????????????? | | ???????????????????????????????????????? | | ???????????????????????????????????????? | | ???????????????????????????????????????? | | ???????????????????????????????????????? | | ???????????????????????????????????????? | +----------------------------------------------------+ Best States ------------- Heat Dissipation 28 Energy Generation 10 Energy Capacity 250 Matter Stores 290 Matter Capacity 300 Sight Range 16 Terrain Scan Density 10 Armor Coverage 150 Evasion (%) 44 Targeting Accuracy 10 Item Schematics ----------------- None Robot Schematics ------------------ None Fabricated ------------ Nothing Repaired ---------- Nothing Studied --------- None Alien Tech Used ----------------- None Achievements -------------- None Challenges ------------ None Game ------ Seed RocketSpectralHammer Manual? 0 Play Time 00:14:46 Cumulative 11.3 hours Start 2026.01.04 @ 01:20:14 End 2026.01.04 @ 03:35:12 Sessions 1 Manual Loads 0 Difficulty Rogue Special Mode None Game No. 28 Rogue 28 Adventurer 0 Explorer 0 Win Type - Total 0 Types 0/0/0/0/0/0/0/0/0/0 Lore% 9 Gallery% 11 Achievement% 13 Wizard Run 0 Options --------- Layout 1 ASCII 0 Keyboard 0 Movement Arrows Keybinds 0 Fullscreen 1 Font 16/SmallcapsGlow Map View 50x40 Zoom Use 0% Tactical HUD 1 Map Filters NONE Filters NONE Steam SD RUN: 27b93f4c-5ebd-4cf6-96dc-9f6f9550ce8a